Cogmind - Beta 14 @@@ ROGUE MODE // 2025.03.21 @ 14:29:46 Player: Brananarchy Result: Destroyed by as-25349 with Assembled F-torch Performance ------------- Evolutions (0) 0 Regions Visited (4) 800 Robots Destroyed (5) 25 Value Destroyed (80) 80 Prototype IDs (23) 460 Alien Tech Used (0) 0 Bonus (300) 300 TOTAL SCORE: 1665 Bonus ------- Aligned with FarCom 300 Cogmind --------- Core Integrity 0/250 Matter 300/300 Energy 65/100 System Corruption 4% Temperature Hot (240) Movement Core (200) Ox3 Location -9/Mines Parts ------- > --- POWER (1) -------- (None) > --- PROPULSION (2) --- (None) > --- UTILITY (2) ------ Medium Storage Unit > --- WEAPON (2) ------- Medium Laser > --- INVENTORY (10) --- Flying Fortress v7 Heat Sink Structural Scanner Sensor Array Sensor Array Mining Laser Peak State ------------ > --- POWER ------------ Light Ion Engine > --- PROPULSION ------- Aluminum Leg Improved Aluminum Leg > --- UTILITY ---------- Medium Storage Unit Hacking Suite > --- WEAPON ----------- Medium Laser Medium Laser > --- INVENTORY -------- Aluminum Leg Flying Fortress v7 Heat Sink Structural Scanner Sensor Array Sensor Array Mining Laser [Rating: 13] Favorites ----------- Power Light Ion Engine Engine Light Ion Engine Propulsion Aluminum Leg Leg Aluminum Leg Utility Hacking Suite Device Heat Sink Storage Medium Storage Unit Hackware Hacking Suite Weapon Medium Laser Energy Gun Medium Laser Build | -11 -10 -10 -10 -9 ------- Run | Yrd Mat Min Exi Min Slots Evolved . | . . . . . Power . | . . . . . Propulsion . | . . . . . Utility . | . . . . . Weapon . | . . . . . Parts Attached 10 | 6 1 . 1 2 Power 1 | 1 . . . . Engine 1 | 1 . . . . Core . | . . . . . Reactor . | . . . . . Propulsion 4 | 2 . . . 2 Treads . | . . . . . Leg 4 | 2 . . . 2 Wheel . | . . . . . Hover . | . . . . . Flight . | . . . . . Utility 3 | 1 1 . 1 . Device 1 | 1 . . . . Storage 1 | . . . 1 . Processor . | . . . . . Hackware 1 | . 1 . . . Protection . | . . . . . Artifact . | . . . . . Weapon 2 | 2 . . . . Energy Gun 2 | 2 . . . . Energy Cannon . | . . . . . Ballistic Gun . | . . . . . Ballistic Cannon . | . . . . . Launcher . | . . . . . Special Weapon . | . . . . . Impact Weapon . | . . . . . Slashing Weapon . | . . . . . Piercing Weapon . | . . . . . Special Melee Weapon . | . . . . . Unidentified Prototypes . | . . . . . Parts Lost 6 | . . . . 6 Power 1 | . . . . 1 Propulsion 3 | . . . . 3 Utility 1 | . . . . 1 Weapon 1 | . . . . 1 Highest Loss Streak 6 | . . . . 6 To Critical Strikes . | . . . . . Average Slot Usage (%) 99 | . 98 100 100 96 Engine 13 | . 14 14 14 11 Leg 27 | . 28 28 28 27 Device 7 | . 14 14 7 . Storage 6 | . . . 6 14 Hackware 13 | . 12 14 14 13 Energy Gun 28 | . 28 28 28 28 Peak Build Rating 13 | 6 9 9 12 13 Average Rating 9 | 3 8 9 9 11 On Entrance 7 | . 6 9 9 12 Naked Turns . | . . . . . Heaviest Build 17 | 8 8 8 17 17 Greatest Support 23 | 20 20 20 20 23 Greatest Overweight (x) 1 | . . . . 1 Average Overweight (x) . | . . . . . Largest Inventory Capacity 10 | 5 5 5 10 10 Average Capacity 7 | 5 5 5 7 10 Most Carried 10 | 2 1 3 8 10 Average Carried 4 | . . 1 4 9 Final Capacity 10 | 5 5 5 10 10 Final Carried 9 | . . 3 8 9 Class Distribution -------------------- 100% | Mutant Dominant Class ---------------- Mutant | -10/Materials Mutant | -10/Mines Mutant | -10/Exiles Mutant | -9/Mines Resources | -11 -10 -10 -10 -9 ----------- Run | Yrd Mat Min Exi Min Matter Collected 285 | 212 46 12 . 15 Remotely . | . . . . . Salvage Created 144 | 50 61 . . 33 Parts 10 | 2 8 . . . Haulers Intercepted . | . . . . . Recyclers Shooed . | . . . . . Parts Field Recycled . | . . . . . Retrieved Matter . | . . . . . Parts Self-Destructed . | . . . . . Prevented . | . . . . . Kills | -11 -10 -10 -10 -9 ------- Run | Yrd Mat Min Exi Min Combat Hostiles Destroyed 6 | 1 3 . . 2 Guns 6 | 1 3 . . 2 Classes Destroyed 4 | 1 2 . . 1 Operator 1 | . 1 . . . Swarmer 3 | . 3 . . . Grunt 1 | 1 . . . . Assembled 2 | . . . . 2 Best Kill Streak 3 | 1 3 . . 2 Combat Bots Only 3 | 1 3 . . 2 Max Kills in Single Turn 1 | 1 1 . . 1 Gunslinging . | . . . . . Exploded . | . . . . . Melee . | . . . . . Uniques/NPCs Destroyed . | . . . . . Combat | -11 -10 -10 -10 -9 -------- Run | Yrd Mat Min Exi Min Hostile Shots Fired 75 | 4 17 . . 54 Missed 27 | 1 10 . . 16 Damage Taken 735 | 34 54 . . 647 Core 259 | 12 23 . . 224 Absorbed by Shields . | . . . . . Core Remaining (%) 95 | 95 . . . . Volleys Fired 20 | 3 7 . . 10 Largest 2 | 2 2 . . 2 Hottest 100 | 100 100 . . 100 Shots Fired 38 | 6 14 . . 18 Gun 38 | 6 14 . . 18 Cannon . | . . . . . Launcher . | . . . . . Special . | . . . . . Kinetic . | . . . . . Thermal 38 | 6 14 . . 18 Explosive . | . . . . . Electromagnetic . | . . . . . Robot Hit Streak 6 | 3 6 . . 4 Robot Miss Streak 7 | 1 4 . . 7 Penetration Max . | . . . . . Secondary Targets . | . . . . . Shots Hit Robots 17 | 4 7 . . 6 Core Hits 12 | 2 5 . . 5 Critical Kills . | . . . . . Critical Parts Destroyed . | . . . . . Critical Strikes 2 | . 1 . . 1 Burn 2 | . 1 . . 1 Melee Attacks . | . . . . . Impact . | . . . . . Slashing . | . . . . . Piercing . | . . . . . Sneak Attacks . | . . . . . Combat Hostiles . | . . . . . Follow-up Attacks . | . . . . . Damage Inflicted 253 | 50 101 . . 102 Guns 251 | 50 101 . . 100 Cannons . | . . . . . Explosions . | . . . . . Melee . | . . . . . Ramming 2 | . . . . 2 Kinetic . | . . . . . Thermal 251 | 50 101 . . 100 Explosive . | . . . . . Electromagnetic . | . . . . . Impact . | . . . . . Slashing . | . . . . . Piercing . | . . . . . Highest Corruption 4 | . . . . 4 Average Corruption 4 | . . . . 4 Corruption Purged . | . . . . . Corruption Blocked . | . . . . . Effects 1 | . . . . 1 Data Loss (major) 1 | . . . . 1 Overload Shots . | . . . . . Overflow Damage . | . . . . . Projectiles . | . . . . . Explosions . | . . . . . Melee . | . . . . . Knockbacks . | . . . . . Impact . | . . . . . Kinetic . | . . . . . Secondary . | . . . . . Self-Inflicted Damage . | . . . . . Shots . | . . . . . Rammed . | . . . . . Targets Rammed 2 | . . . . 2 Kicked 2 | . . . . 2 Crushed . | . . . . . Highest Temperature 220 | 135 45 . . 220 Average Temperature 59 | 63 20 . . 83 Received Heat Transfer 138 | 18 . . . 120 Siege Activations . | . . . . . Robots Corrupted . | . . . . . Combat Hostiles . | . . . . . Parts Fried . | . . . . . Impact Corruptions . | . . . . . Robots Melted . | . . . . . Combat Hostiles . | . . . . . Parts Melted 3 | . 3 . . . Heat Transferred 888 | 148 370 . . 370 Parts Sabotaged . | . . . . . Parts Stolen . | . . . . . Parts Stripped . | . . . . . Power Chain Reactions . | . . . . . Alert | -11 -10 -10 -10 -9 ------- Run | Yrd Mat Min Exi Min Peak Influence 133 | 20 133 51 . . Initial 51 | . 13 51 . . Average 29 | 3 71 51 . . Maximum Alert Level . | . . . . . Low Security (%) 100 | 100 100 100 . 100 Level 1 . | . . . . . Level 2 . | . . . . . Level 3 . | . . . . . Level 4 . | . . . . . Level 5 . | . . . . . High Security . | . . . . . Max Security . | . . . . . Squads Dispatched 1 | . 1 . . . Investigation . | . . . . . Extermination . | . . . . . Reinforcement 1 | . 1 . . . Assault . | . . . . . Garrison . | . . . . . Intercept . | . . . . . Searches Triggered . | . . . . . Construction Impeded . | . . . . . Haulers Reinforced . | . . . . . Active Scanning Responses . | . . . . . Cargo Convoy Interrupts . | . . . . . Stealth | -11 -10 -10 -10 -9 --------- Run | Yrd Mat Min Exi Min Distress Signals . | . . . . . Communications Jammed . | . . . . . Distress Signals . | . . . . . Times Spotted 19 | 1 6 . . 12 Peak Tracking Total 8 | 1 3 . . 8 Tactical Retreats 2 | . 1 . . 1 Traps | -11 -10 -10 -10 -9 ------- Run | Yrd Mat Min Exi Min Traps Triggered . | . . . . . Indirectly . | . . . . . Trap Hack Attempts . | . . . . . Triggered . | . . . . . Disarmed . | . . . . . Reprogrammed . | . . . . . Reused . | . . . . . Traps Extracted . | . . . . . Installed . | . . . . . Triggered . | . . . . . Machines | -11 -10 -10 -10 -9 ---------- Run | Yrd Mat Min Exi Min Machines Disabled . | . . . . . Max in Single Turn . | . . . . . Machines Repaired . | . . . . . Machines Dismantled . | . . . . . Machines Sabotaged . | . . . . . Overloaded Fab Kills . | . . . . . Hacking | -11 -10 -10 -10 -9 --------- Run | Yrd Mat Min Exi Min Machines Accessed 7 | . 2 . 5 . Terminals 1 | . 1 . . . Fabricators . | . . . . . Repair Stations . | . . . . . Recycling Units 1 | . 1 . . . Scanalyzers . | . . . . . Garrison Access . | . . . . . Total Hacks 54 | . 4 . 50 . Successful 53 | . 3 . 50 . Failed 1 | . 1 . . . Catastrophic . | . . . . . Database Lockouts . | . . . . . Manual 1 | . . . 1 . Terminals 3 | . 3 . . . Fabricators . | . . . . . Repair Stations . | . . . . . Recycling Units 1 | . 1 . . . Scanalyzers . | . . . . . Garrison Access . | . . . . . Terminal Hacks 52 | . 2 . 50 . Record 50 | . 1 . 49 . Zone Layout 1 | . 1 . . . Derelict Proto ID Bank 1 | . . . 1 . Fabricator Hacks . | . . . . . Repair Station Hacks . | . . . . . Recycling Unit Hacks 1 | . 1 . . . Report Inventory 1 | . 1 . . . Scanalyzer . | . . . . . Garrison Access Hacks . | . . . . . Unauthorized Hacks . | . . . . . Terminals . | . . . . . Fabricators . | . . . . . Repair Stations . | . . . . . Recycling Units . | . . . . . Scanalyzers . | . . . . . Garrison Access . | . . . . . Data Cores Recovered 1 | . 1 . . . Used . | . . . . . Hacking Detections 1 | . 1 . . . Full Trace Events . | . . . . . Feedback Events . | . . . . . Feedback Blocked . | . . . . . Robot Schematics Acquired . | . . . . . Robots Built . | . . . . . Authchips . | . . . . . Time . | . . . . . Total Robot Build Rating . | . . . . . Part Schematics Acquired . | . . . . . Parts Built . | . . . . . Authchips . | . . . . . Time . | . . . . . Total Part Build Rating . | . . . . . Parts Repaired . | . . . . . Time . | . . . . . Parts Recycled . | . . . . . Recycled Matter . | . . . . . Retrieved Matter . | . . . . . Retrieved Components . | . . . . . Parts Scanalyzed . | . . . . . Part Schematics Acquired . | . . . . . Parts Damaged . | . . . . . Bothacking | -11 -10 -10 -10 -9 ------------ Run | Yrd Mat Min Exi Min Used RIF Installer . | . . . . . Robots Hacked . | . . . . . Non-combat . | . . . . . Combat . | . . . . . Robot Hacks Applied . | . . . . . Relay Couplers Released . | . . . . . Fabnet Peak Effective % . | . . . . . Robots Rewired . | . . . . . Allies Hacked . | . . . . . Hacks Repelled . | . . . . . Allies | -11 -10 -10 -10 -9 -------- Run | Yrd Mat Min Exi Min Total Allies 1 | . . 1 . . Largest Group 1 | . . 1 1 . Highest-Rated Group 31 | . . 31 31 . Highest-Rated Ally 31 | . . 31 31 . Total Orders . | . . . . . Ally Attacks . | . . . . . Total Damage . | . . . . . Kills . | . . . . . Allies Corrupted . | . . . . . Allies Melted . | . . . . . Intel | -11 -10 -10 -10 -9 ------- Run | Yrd Mat Min Exi Min Robot Analysis Total . | . . . . . Derelict Logs Recovered 1 | . . . . 1 Drone Launches . | . . . . . Drone Recoveries . | . . . . . Exploration | -11 -10 -10 -10 -9 ------------- Run | Yrd Mat Min Exi Min Turns Passed 1227 | 81 135 125 681 205 Spaces Moved 963 | 60 94 102 565 142 Core 16 | 16 . . . . Treads . | . . . . . Legs 947 | 44 94 102 565 142 Wheels . | . . . . . Hover . | . . . . . Flight . | . . . . . Fastest Speed 50 | 50 120 120 120 120 Average Speed 118 | 101 120 120 120 120 Slowest Speed 190 | 120 120 120 120 190 Overloaded Moves . | . . . . . Propulsion Burnouts . | . . . . . Robots Hopped . | . . . . . Cave-ins Triggered . | . . . . . Exploration Rate (%) 36 | 8 21 23 93 37 Regions Visited 4 Branch Regions 3 Pre-discovered Areas 1 | . . . 1 . Known Exits Taken . | . . . . . Unknown Exits Taken 4 | 1 1 1 1 . Scrap Searched 4 | . . 2 . 2 Spaces Dug . | . . . . . Terrain Destroyed . | . . . . . Melee . | . . . . . Projectile . | . . . . . AOE . | . . . . . Terrain Rammed . | . . . . . Walls Destroyed . | . . . . . Machines Disabled . | . . . . . Actions | -11 -10 -10 -10 -9 --------- Run | Yrd Mat Min Exi Min Total 1005 | 74 102 104 567 158 Wait . | . . . . . Move 959 | 59 93 101 564 142 Hop . | . . . . . Pick Up 14 | 6 1 3 2 2 Fast Attach . | . . . . . Attach 8 | 6 1 . . 1 Detach . | . . . . . Swap 2 | . . . 1 1 Drop . | . . . . . Fire 20 | 3 7 . . 10 Melee . | . . . . . Ram . | . . . . . Kick 2 | . . . . 2 Crush . | . . . . . Escape Stasis . | . . . . . Rewire . | . . . . . Trap . | . . . . . Miscellaneous . | . . . . . Route ------- -11/Scrapyard -10/Materials -10/Mines -10/Exiles (discovered 2 exits: [*Min x2]) -9/Mines History --------- Turn | Location | Event 2 | -11/Scrapyard | Met Revision 17 54 | -11/Scrapyard | Discovered new exit (range 8) 82 | -11/Scrapyard | Entered Materials 111 | -10/Materials | Discovered new exit (range 14) 217 | -10/Materials | Entered Mines 220 | -10/Mines | Received a Mining Laser from a helpful Derelict 221 | -10/Mines | Met a Derelict bent on vengeance 304 | -10/Mines | Build established: Mutant 334 | -10/Mines | Deemed a non-threat by the Exiles lab entrance 334 | -10/Mines | Discovered new exit (range 5) 342 | -10/Mines | Entered Exiles 342 | -10/Exiles | Accompanied by 1 ally 360 | -10/Exiles | Discovered new exit (range 15) 386 | -10/Exiles | Met 8R-AWN 406 | -10/Exiles | Met EX-HEX 487 | -10/Exiles | Visited The Gauntlet 614 | -10/Exiles | Met EX-DEC 652 | -10/Exiles | Learned location of Zion (-7) 736 | -10/Exiles | Discovered new exit (range 14) 820 | -10/Exiles | Met EX-BIN 842 | -10/Exiles | Aligned with FarCom system 843 | -10/Exiles | Given EX-Vault access code 897 | -10/Exiles | Opened EX-Vault 903 | -10/Exiles | Found Flying Fortress v7 930 | -10/Exiles | Warned to stay clear of 0b10 Research branches 1023 | -10/Exiles | Left Exiles lab with Flying Fortress v7 1023 | -10/Exiles | Entered Mines 1112 | -9/Mines | Learned 2 Materials zone layouts 1114 | -9/Mines | Assembled infested the area 1119 | -9/Mines | Assisted by a Guerilla fighting off Assembled 1215 | -9/Mines | Core integrity fell below 50% 1224 | -9/Mines | Core integrity fell below 20% 1228 | -9/Mines | Destroyed by as-25349 with Assembled F-torch Last Messages --------------- Acquired 5 matter. D-53 Grenadier destroyed. The unstable cave ceiling collapses. Lgt. Ion Engine destroyed. The unstable cave ceiling collapses. Imp. Aluminum Leg destroyed. The unstable cave ceiling collapses. Knocked back. as-01399 destroyed. Hacking Suite destroyed. System corrupted by crushing effect (+4). Aluminum Leg destroyed. as-16028 destroyed. as-30226 destroyed. System corrupted: Substantial component data lost. Aluminum Leg destroyed. as-49838 suffers critical hit (Burn). Knocked back. Med. Laser destroyed. Map ----- +----------------------------------------------------+ | ??###????????????????????????????????????????????? | | ## ##???????????????????????????????????????????? | | # ????????????????????????????????????????????? | | #????????????????????????????????????????????? | | ##???????????????????????????????????????????? | | ##??????????????????????????????????????????? | | #??????????????????????????????????????????? | | [ #??????????????????????????????????????????? | | % #??????????????????????????????????????????? | | [# ##????????????#?????????????????????????????? | | #??#????????????? ?????????????????????????????? | | #???????????????? ?????????????????????????????? | | #???????????????# #????????????????????????????? | | #???????????????#=#????????????????????????????? | | #???????????????#%#????????????????????????????? | | #???????????????#!#????????????????????????????? | | #???????????????#*#????????????????????????????? | | #??????????###### #????????????????????????????? | | ############ # # ##########???????????????????? | | =%! ## #???????????????????? | | ############ #???????????????????? | | #?????????# ##a #???????????????????? | | ########?# ##%a """#???????????????????? | | #?## ### %%"""#???????????????????? | | #?# # ## a """#???????????????????? | | ####### #?# # # # @ #???????????????????? | | ??????# #?#### # ########???????????????????? | | ??????# #?? ##??????????????????????????? | | ??????# #?# # % ???????????????????????????? | | ??????# #?# # # ??????????????????????????? | | ??????# #?## # # #?????????????????????????? | | ??##### ###### # " #?????????????????????????? | | ?## ##?## #### #?????????????????????????? | | ## ##??###??????????????????????????????? | | ##??????????????????????????????????? | | #??????????????????????????????????? | | ## #?????????????????????????????????? | | ##?####?????????????????????????????????? | | ##???????????????????????????????????????? | | ###????????????????????????????????????????? | | ##?????????????????????????????????????????? | | #######???##??????????????????????????????? | | ### ##?????????????????????????????? | | ##????????????????????????????? | | ###??????????????????????????? | | #### ??????????????????????????? | | !##??# ??????????????????????????? | | ###### ## ??????????????????????????? | | ##?????????????????????????????????? | | ##??????????????????????????????????? | +----------------------------------------------------+ Best States ------------- Heat Dissipation 35 Energy Generation 10 Energy Capacity 125 Matter Stores 300 Matter Capacity 300 Sight Range 16 Terrain Scan Density 10 Evasion (%) 55 Offensive Hacking 10 Item Schematics ----------------- None Robot Schematics ------------------ None Fabricated ------------ Nothing Alien Tech Used ----------------- None Achievements -------------- Librarian Challenges ------------ None Game ------ Seed FluxGuidedFlamer Manual? 0 Play Time 00:30:09 Cumulative 1.2 hours Start 2025.03.21 @ 13:56:49 End 2025.03.21 @ 14:29:46 Sessions 1 Manual Loads 0 Difficulty Rogue Special Mode None Game No. 3 Rogue 3 Adventurer 0 Explorer 0 Win Type - Total 0 Types 0/0/0/0/0/0/0/0/0 Lore% 5 Gallery% 2 Achievement% 10 Wizard Run 0 Options --------- Layout 1 ASCII 0 Keyboard 0 Movement Mouse Keybinds 0 Fullscreen 1 Font 32/SmallcapsGlow Map View 50x35 Zoom Use 0% Tactical HUD 0 Map Filters NONE Filters NONE Steam 1 RUN: 1ea5d5af-31ab-4154-96a7-0aec11e8ecaa